[Event "51st La Roda Open 2025"]
[Site "La Roda"]
[Date "2025.04.19"]
[Round "8.7"]
[White "Buendia Pinar, Alvaro"]
[Black "Rodriguez Garcia, Manuel Francisco"]
[Result "1-0"]
[Annotator "ChessBase"]
[ECO "D50"]
[WhiteElo "2322"]
[BlackElo "2131"]
[PlyCount "79"]
[EventDate "2025.04.15"]
[EventType "swiss"]
[EventCountry "ESP"]
[SourceTitle "playchess.com"]
[Source "ChessBase"]
[SourceQuality "1"]
[TimeControl "5400+30"]

1. d4 {[%emt 0:00:31]} Nf6 {[%emt 0:02:47]} 2. c4 {[%emt 0:00:37]} e6 {[%emt 0:00:05]} 3. Nc3 {[%emt 0:00:37]} d5 {[%emt 0:00:04]} 4. Bg5 {[%emt 0:00:38]} dxc4 {[%emt 0:01:37]} 5. e4 {[%emt 0:01:00]} b5 {[%emt 0:05:29]} 6. Nxb5 {[%emt 0:04:02]} Bb4+ {[%emt 0:03:44]} 7. Nc3 {[%emt 0:01:43]} c5 {[%emt 0:02:48]} 8. dxc5 {[%emt 0:03:06]} Qxd1+ {[%emt 0:25:17]} 9. Rxd1 {[%emt 0:00:05]} Ba6 {[%emt 0:00:21]} 10. a3 {[%emt 0:09:35]} Bxc3+ {[%emt 0:08:52]} 11. bxc3 {[%emt 0:00:34]} Nbd7 {[%emt 0:00:08]} 12. Rd6 {[%emt 0:08:11]} Nxc5 {[%emt 0:08:48]} 13. Be3 {[%emt 0:03:58]} Nfxe4 {[%emt 0:24:27]} 14. Rc6 {[%emt 0:05:38]} Rb8 {[%emt 0:03:53]} 15. Bxc5 {[%emt 0:04:38]} Rb1+ {[%emt 0:00:05]} 16. Ke2 {[%emt 0:00:07]} Nxc3+ {[%emt 0:00:02]} 17. Kd2 {[%emt 0:07:31]} Ne4+ {[%emt 0:00:10]} 18. Ke3 {[%emt 0:00:48]} Rxf1 {[%emt 0:03:03]} 19. Bxa7 {[%emt 0:00:24]} Re1+ {[%emt 0:03:55]} 20. Kf4 {[%emt 0:04:44]} Bb7 {[%emt 0:04:55]} 21. Rc7 {[%emt 0:04:08]} Nd6 {[%emt 0:00:00]} 22. f3 {[%emt 0:01:07]} Rb1 {[%emt 0:00:16]} 23. Bc5 {[%emt 0:01:20]} Nf5 {[%emt 0:00:31]} 24. g4 {[%emt 0:02:50]} Kd8 {[%emt 0:00:37]} 25. Rxf7 {[%emt 0:01:37]} Nh4 {[%emt 0:00:15]} 26. Kg3 {[%emt 0:03:59]} Nxf3 {[%emt 0:00:24]} 27. Nxf3 {[%emt 0:00:22]} Rxh1 {[%emt 0:00:34]} 28. Rxb7 {[%emt 0:00:07]} Kc8 {[%emt 0:00:17]} 29. Rb4 {[%emt 0:02:01]} Rc1 {[%emt 0:00:52]} 30. Be3 {[%emt 0:00:18]} Rc3 {[%emt 0:00:18]} 31. Bf4 {[%emt 0:00:04]} Kd7 {[%emt 0:00:16]} 32. Be5 {[%emt 0:02:54]} Rxa3 {[%emt 0:00:29]} 33. Rxc4 {[%emt 0:00:24]} Rf8 {[%emt 0:00:19]} 34. Bc3 {[%emt 0:02:10]} Rc8 {[%emt 0:00:33]} 35. Rxc8 {[%emt 0:00:07]} Kxc8 {[%emt 0:00:01]} 36. Bxg7 {[%emt 0:00:11]} Kd7 {[%emt 0:00:09]} 37. Kf4 {[%emt 0:00:51]} Ke8 {[%emt 0:00:30]} 38. Bd4 {[%emt 0:00:33]} Rd3 {[%emt 0:01:49]} 39. Ke4 {[%emt 0:00:22]} Rb3 {[%emt 0:00:20]} 40. h4 {[%emt 0:00:09]} 1-0

[Event "51st La Roda Open 2025"]
[Site "La Roda"]
[Date "2025.04.19"]
[Round "8.8"]
[White "Centron Antuna, Daniel"]
[Black "Rodriguez Rivera, Pedro"]
[Result "1/2-1/2"]
[Annotator "ChessBase"]
[ECO "C41"]
[WhiteElo "2299"]
[BlackElo "2127"]
[PlyCount "97"]
[EventDate "2025.04.15"]
[EventType "swiss"]
[EventCountry "ESP"]
[SourceTitle "playchess.com"]
[Source "ChessBase"]
[SourceQuality "1"]
[TimeControl "5400+30"]

1. e4 {[%emt 0:00:03]} d6 {[%emt 0:00:07]} 2. d4 {[%emt 0:00:14]} e5 {[%emt 0:00:09]} 3. Nf3 {[%emt 0:00:51]} exd4 {[%emt 0:00:02]} 4. Nxd4 {[%emt 0:00:09]} Nf6 {[%emt 0:00:04]} 5. Nc3 {[%emt 0:00:35]} Be7 {[%emt 0:00:03]} 6. Be2 {[%emt 0:01:51]} O-O {[%emt 0:00:10]} 7. O-O {[%emt 0:00:22]} c5 {[%emt 0:00:14]} 8. Nf3 {[%emt 0:00:36]} Nc6 {[%emt 0:01:07]} 9. Bf4 {[%emt 0:05:24]} Re8 {[%emt 0:00:13]} 10. Re1 {[%emt 0:01:07]} Bf8 {[%emt 0:01:22]} 11. Bc4 {[%emt 0:03:10]} Bg4 {[%emt 0:04:42]} 12. h3 {[%emt 0:02:53]} Bh5 {[%emt 0:01:56]} 13. g4 {[%emt 0:06:06]} Bg6 {[%emt 0:00:05]} 14. Bg5 {[%emt 0:08:54]} Be7 {[%emt 0:01:38]} 15. Qd2 {[%emt 0:00:49]} Ne5 {[%emt 0:03:50]} 16. Nxe5 {[%emt 0:02:25]} dxe5 {[%emt 0:00:06]} 17. Rad1 {[%emt 0:05:03]} Qxd2 {[%emt 0:02:43]} 18. Bxd2 {[%emt 0:01:42]} Red8 {[%emt 0:05:08]} 19. Nd5 {[%emt 0:04:49]} Nxd5 {[%emt 0:05:42]} 20. Bxd5 {[%emt 0:00:54]} Rd7 {[%emt 0:11:24]} 21. Bc3 {[%emt 0:02:01]} Bf6 {[%emt 0:01:46]} 22. f4 {[%emt 0:01:54]} exf4 {[%emt 0:00:23]} 23. Bxf6 {[%emt 0:00:27]} gxf6 {[%emt 0:00:02]} 24. Rf1 {[%emt 0:00:41]} Rad8 {[%emt 0:02:01]} 25. Rde1 {[%emt 0:00:24]} f5 {[%emt 0:00:38]} 26. gxf5 {[%emt 0:06:58]} Bxf5 {[%emt 0:00:41]} 27. Kh2 {[%emt 0:00:43]} Bg6 {[%emt 0:01:18]} 28. Rxf4 {[%emt 0:01:18]} Re8 {[%emt 0:00:28]} 29. c4 {[%emt 0:04:51]} Re5 {[%emt 0:01:49]} 30. Ref1 {[%emt 0:03:39]} Rde7 {[%emt 0:02:04]} 31. Kg3 {[%emt 0:00:42]} Bxe4 {[%emt 0:03:03]} 32. Bxf7+ {[%emt 0:00:22]} Kg7 {[%emt 0:00:19]} 33. R1f2 {[%emt 0:08:59]} Rg5+ {[%emt 0:06:02]} 34. Kh4 {[%emt 0:00:55]} Rge5 {[%emt 0:08:20]} 35. Bd5 {[%emt 0:00:25]} Bg6 {[%emt 0:00:31]} 36. Kg3 {[%emt 0:01:17]} Re3+ {[%emt 0:03:06]} 37. R4f3 {[%emt 0:01:27]} b6 {[%emt 0:00:27]} 38. h4 {[%emt 0:02:59]} R3e5 {[%emt 0:07:08]} 39. Rd2 {[%emt 0:01:56]} Re2 {[%emt 0:00:36]} 40. Rf2 {[%emt 0:03:20]} Bh5 {[%emt 0:04:13]} 41. Kf4 {[%emt 0:03:09]} Kf6 {[%emt 0:01:46]} 42. Kg3+ {[%emt 0:02:02]} Kg7 {[%emt 0:00:03]} 43. Bg2 {[%emt 0:03:37]} R7e3+ {[%emt 0:03:21]} 44. Kf4 {[%emt 0:01:13]} Rxf2+ {[%emt 0:00:30]} 45. Rxf2 {[%emt 0:00:02]} Re2 {[%emt 0:00:14]} 46. Rxe2 {[%emt 0:00:06]} Bxe2 {[%emt 0:00:03]} 47. Bd5 {[%emt 0:00:19]} Kf6 {[%emt 0:00:09]} 48. a3 {[%emt 0:00:20]} h6 {[%emt 0:00:39]} 49. b4 {[%emt 0:00:54]} 1/2-1/2

[Event "51st La Roda Open 2025"]
[Site "La Roda"]
[Date "2025.04.19"]
[Round "8.8"]
[White "Centron Antuna, Daniel"]
[Black "Rodriguez Rivera, Pedro"]
[Result "*"]
[Annotator "RC"]
[ECO "C41"]
[WhiteElo "2299"]
[BlackElo "2127"]
[PlyCount "37"]
[EventDate "2025.04.15"]
[EventType "swiss"]
[EventCountry "ESP"]
[SourceTitle "playchess.com"]
[Source "ChessBase"]
[SourceQuality "1"]
[TimeControl "5400+30"]

1. e4 {[%emt 0:00:03]} d6 {[%emt 0:00:07]} 2. d4 {[%emt 0:00:14]} e5 {[%emt 0:00:09]} 3. Nf3 {[%emt 0:00:51]} exd4 {[%emt 0:00:02]} 4. Nxd4 {[%emt 0:00:09]} Nf6 {[%emt 0:00:04]} 5. Nc3 {[%emt 0:00:35]} Be7 {[%emt 0:00:03]} 6. Be2 {[%emt 0:01:51]} O-O {[%emt 0:00:10]} 7. O-O {[%emt 0:00:22]} c5 {[%emt 0:00:14]} 8. Nf3 {[%emt 0:00:36]} Nc6 {[%emt 0:01:07]} 9. Bf4 {[%emt 0:05:24]} Re8 {[%emt 0:00:13]} 10. Re1 {[%emt 0:01:07]} Bf8 {[%emt 0:01:22]} 11. Bc4 {[%emt 0:03:10]} Bg4 {[%emt 0:04:42]} 12. h3 {[%emt 0:02:53]} Bh5 {[%emt 0:01:56]} 13. g4 {[%emt 0:06:06]} Bg6 {[%emt 0:00:05]} 14. Bg5 {[%emt 0:08:54]} Be7 {[%emt 0:01:38]} 15. Qd2 {[%emt 0:00:49]} Ne5 {[%emt 1:26:08]} 16. Nxe5 {[%emt 0:02:25]} dxe5 {[%emt 0:00:06]} 17. Rad1 {[%emt 0:05:03]} Qd6 {[%emt 1:23:12]} 18. Qd3 Qxd3 {[%emt 0:00:00]} 19. Bd2 {[%emt 0:02:12]} *

[Event "51st La Roda Open 2025"]
[Site "La Roda"]
[Date "2025.04.19"]
[Round "8.9"]
[White "Gonzalez Castillo, Jose Javier"]
[Black "Abdsattar, Alisher"]
[Result "1-0"]
[Annotator "ChessBase"]
[ECO "C54"]
[WhiteElo "2297"]
[BlackElo "2126"]
[PlyCount "67"]
[EventDate "2025.04.15"]
[EventType "swiss"]
[EventCountry "ESP"]
[SourceTitle "playchess.com"]
[Source "ChessBase"]
[SourceQuality "1"]
[TimeControl "5400+30"]

1. e4 {[%emt 0:01:42]} e5 {[%emt 0:00:10]} 2. Nf3 {[%emt 0:00:12]} Nc6 {[%emt 0:00:05]} 3. Bc4 {[%emt 0:00:03]} Nf6 {[%emt 0:00:04]} 4. d3 {[%emt 0:00:02]} Bc5 {[%emt 0:00:03]} 5. c3 {[%emt 0:00:03]} d6 {[%emt 0:00:04]} 6. O-O {[%emt 0:00:04]} a5 {[%emt 0:00:05]} 7. Nbd2 {[%emt 0:00:08]} O-O {[%emt 0:00:07]} 8. h3 {[%emt 0:00:03]} h6 {[%emt 0:00:04]} 9. Re1 {[%emt 0:00:03]} Be6 {[%emt 0:00:05]} 10. Bb5 {[%emt 0:00:03]} Qb8 {[%emt 0:00:04]} 11. Bxc6 {[%emt 0:00:15]} bxc6 {[%emt 0:00:04]} 12. d4 {[%emt 0:00:04]} exd4 {[%emt 0:00:33]} 13. cxd4 {[%emt 0:00:02]} Bb6 {[%emt 0:00:30]} 14. a4 {[%emt 0:00:05]} Qa7 {[%emt 0:09:05]} 15. Nb1 {[%emt 0:00:03]} d5 {[%emt 0:12:47]} 16. e5 {[%emt 0:00:06]} Nd7 {[%emt 0:00:08]} 17. Nc3 {[%emt 0:00:23]} f6 {[%emt 0:06:17]} 18. exf6 {[%emt 0:05:00]} Rxf6 {[%emt 0:00:11]} 19. Be3 {[%emt 0:00:04]} Bf7 {[%emt 0:12:45]} 20. Nh2 {[%emt 0:02:19]} Re8 {[%emt 0:01:19]} 21. Qd2 {[%emt 0:05:20]} Rfe6 {[%emt 0:02:24]} 22. Rec1 {[%emt 0:01:07]} Bh5 {[%emt 0:05:23]} 23. Nf1 {[%emt 0:01:45]} Nb8 {[%emt 0:06:57]} 24. Ng3 {[%emt 0:02:04]} Bg6 {[%emt 0:01:16]} 25. Nce2 {[%emt 0:00:44]} Bh7 {[%emt 0:02:46]} 26. Ra3 {[%emt 0:01:25]} Na6 {[%emt 0:01:59]} 27. Nf4 {[%emt 0:02:17]} Rd6 {[%emt 0:00:27]} 28. Nfh5 {[%emt 0:02:29]} Re7 {[%emt 0:07:38]} 29. Bf4 {[%emt 0:02:13]} Rg6 {[%emt 0:04:03]} 30. Re1 {[%emt 0:02:11]} Rge6 {[%emt 0:02:06]} 31. Rxe6 {[%emt 0:01:06]} Rxe6 {[%emt 0:00:04]} 32. Be5 {[%emt 0:00:14]} Rxe5 {[%emt 0:03:14]} 33. dxe5 {[%emt 0:00:06]} Qa8 {[%emt 0:00:03]} 34. Nxg7 {[%emt 0:01:25]} 1-0

[Event "51st La Roda Open 2025"]
[Site "La Roda"]
[Date "2025.04.19"]
[Round "8.10"]
[White "Gomez Peco, David"]
[Black "Garcia Jimenez, Santiago"]
[Result "1/2-1/2"]
[Annotator "ChessBase"]
[ECO "B57"]
[WhiteElo "2085"]
[BlackElo "2241"]
[PlyCount "55"]
[EventDate "2025.04.15"]
[EventType "swiss"]
[EventCountry "ESP"]
[SourceTitle "playchess.com"]
[Source "ChessBase"]
[SourceQuality "1"]
[TimeControl "5400+30"]

1. e4 {[%emt 0:00:06]} c5 {[%emt 0:00:11]} 2. Nf3 {[%emt 0:00:13]} Nc6 {[%emt 0:00:59]} 3. d4 {[%emt 0:00:08]} cxd4 {[%emt 0:00:05]} 4. Nxd4 {[%emt 0:00:06]} Nf6 {[%emt 0:00:04]} 5. Nc3 {[%emt 0:00:13]} d6 {[%emt 0:00:14]} 6. Bc4 {[%emt 0:02:09]} Na5 {[%emt 0:02:02]} 7. Bd3 {[%emt 0:03:29]} g6 {[%emt 0:00:55]} 8. h3 {[%emt 0:12:35]} Bg7 {[%emt 0:00:15]} 9. Be3 {[%emt 0:00:24]} O-O {[%emt 0:00:33]} 10. O-O {[%emt 0:01:27]} Bd7 {[%emt 0:07:22]} 11. Nd5 {[%emt 0:02:12]} Rc8 {[%emt 0:03:57]} 12. Qe2 {[%emt 0:03:21]} Nc6 {[%emt 0:14:14]} 13. Nb5 {[%emt 0:14:55]} Nxd5 {[%emt 0:12:46]} 14. exd5 {[%emt 0:00:58]} Nb4 {[%emt 0:05:47]} 15. Nxa7 {[%emt 0:08:43]} Ra8 {[%emt 0:01:25]} 16. Bc4 {[%emt 0:01:43]} Qa5 {[%emt 0:09:59]} 17. a3 {[%emt 0:09:43]} Nxd5 {[%emt 0:08:06]} 18. b4 {[%emt 0:03:34]} Qa4 {[%emt 0:00:18]} 19. Bxd5 {[%emt 0:04:47]} Bxa1 {[%emt 0:00:43]} 20. Rxa1 {[%emt 0:01:00]} Rxa7 {[%emt 0:01:10]} 21. Bxa7 {[%emt 0:00:20]} Qxa7 {[%emt 0:00:16]} 22. Qxe7 {[%emt 0:02:08]} Qd4 {[%emt 0:00:23]} 23. Re1 {[%emt 0:00:21]} Qxd5 {[%emt 0:00:53]} 24. Qxd7 {[%emt 0:00:23]} Qd2 {[%emt 0:01:15]} 25. Re3 {[%emt 0:03:10]} Qd1+ {[%emt 0:01:50]} 26. Kh2 {[%emt 0:00:50]} Qxc2 {[%emt 0:00:51]} 27. Qxd6 {[%emt 0:25:02]} Qxf2 {[%emt 0:27:27]} 28. Rf3 {[%emt 0:00:30]} 1/2-1/2

[Event "51st La Roda Open 2025"]
[Site "La Roda"]
[Date "2025.04.19"]
[Round "8.11"]
[White "Martinez Herranz, Francisco Jose"]
[Black "Aishwin Daniel"]
[Result "1/2-1/2"]
[Annotator "ChessBase"]
[ECO "A10"]
[WhiteElo "2050"]
[BlackElo "2236"]
[PlyCount "41"]
[EventDate "2025.04.15"]
[EventType "swiss"]
[EventCountry "ESP"]
[SourceTitle "playchess.com"]
[Source "ChessBase"]
[SourceQuality "1"]
[TimeControl "5400+30"]

1. Nf3 {[%emt 0:00:04]} e6 {[%emt 0:00:07]} 2. g3 {[%emt 0:00:27]} f5 {[%emt 0:00:37]} 3. c4 {[%emt 0:00:08]} Nf6 {[%emt 0:00:12]} 4. Bg2 {[%emt 0:00:06]} Nc6 {[%emt 0:02:21]} 5. O-O {[%emt 0:00:51]} e5 {[%emt 0:02:30]} 6. d3 {[%emt 0:02:26]} Be7 {[%emt 0:01:25]} 7. Nc3 {[%emt 0:00:31]} O-O {[%emt 0:00:30]} 8. a3 {[%emt 0:02:03]} a5 {[%emt 0:00:51]} 9. Qa4 {[%emt 0:05:28]} d6 {[%emt 0:05:03]} 10. b4 {[%emt 0:00:14]} Qe8 {[%emt 0:01:46]} 11. Bb2 {[%emt 0:21:03]} Kh8 {[%emt 0:07:33]} 12. b5 {[%emt 0:02:49]} Nd8 {[%emt 0:01:04]} 13. Qc2 {[%emt 0:05:24]} f4 {[%emt 0:03:54]} 14. e3 {[%emt 0:03:05]} Qh5 {[%emt 0:02:09]} 15. exf4 {[%emt 0:02:12]} exf4 {[%emt 0:09:51]} 16. Ne2 {[%emt 0:06:24]} Ne6 {[%emt 0:11:17]} 17. Rae1 {[%emt 0:03:18]} Ng4 {[%emt 0:04:11]} 18. Ned4 {[%emt 0:02:38]} Nxd4 {[%emt 0:08:30]} 19. Bxd4 {[%emt 0:00:59]} Bf6 {[%emt 0:01:48]} 20. Qc3 {[%emt 0:03:24]} Bd7 {[%emt 0:04:19]} 21. Re4 {[%emt 0:05:31]} 1/2-1/2

[Event "51st La Roda Open 2025"]
[Site "La Roda"]
[Date "2025.04.19"]
[Round "8.12"]
[White "Pomes Marcet, Joan"]
[Black "Machado Hernandez, Junior"]
[Result "1/2-1/2"]
[Annotator "ChessBase"]
[ECO "B14"]
[WhiteElo "2187"]
[BlackElo "2051"]
[PlyCount "44"]
[EventDate "2025.04.15"]
[EventType "swiss"]
[EventCountry "ESP"]
[SourceTitle "playchess.com"]
[Source "ChessBase"]
[SourceQuality "1"]
[TimeControl "5400+30"]

1. d4 {[%emt 0:00:02]} d5 {[%emt 0:00:17]} 2. c4 {[%emt 0:00:10]} e6 {[%emt 0:00:14]} 3. Nc3 {[%emt 0:00:20]} c5 {[%emt 0:00:22]} 4. cxd5 {[%emt 0:01:33]} exd5 {[%emt 0:03:43]} 5. e3 {[%emt 0:00:50]} Nf6 {[%emt 0:01:04]} 6. Nf3 {[%emt 0:00:13]} Nc6 {[%emt 0:00:46]} 7. Be2 {[%emt 0:01:26]} cxd4 {[%emt 0:04:08]} 8. exd4 {[%emt 0:00:23]} Be7 {[%emt 0:00:20]} 9. O-O {[%emt 0:03:28]} O-O {[%emt 0:00:06]} 10. Ne5 {[%emt 0:13:31]} Qb6 {[%emt 0:07:38]} 11. Na4 {[%emt 0:02:05]} Qd8 {[%emt 0:08:53]} 12. Nxc6 {[%emt 0:06:19]} bxc6 {[%emt 0:00:04]} 13. Bf4 {[%emt 0:00:50]} Ne4 {[%emt 0:04:35]} 14. f3 {[%emt 0:02:03]} Nd6 {[%emt 0:01:25]} 15. Rc1 {[%emt 0:02:57]} Bd7 {[%emt 0:01:20]} 16. Nc5 {[%emt 0:04:39]} Nf5 {[%emt 0:09:29]} 17. Qa4 {[%emt 0:08:18]} Bxc5 {[%emt 0:05:25]} 18. Rxc5 {[%emt 0:03:02]} Qh4 {[%emt 0:01:11]} 19. g3 {[%emt 0:01:08]} Qf6 {[%emt 0:00:56]} 20. Be5 {[%emt 0:04:03]} Qg5 {[%emt 0:00:08]} 21. Bf4 {[%emt 0:03:38]} Qf6 {[%emt 0:00:07]} 22. Be5 {[%emt 0:14:53]} Qg5 {[%emt 0:00:06]} 1/2-1/2

[Event "51st La Roda Open 2025"]
[Site "La Roda"]
[Date "2025.04.19"]
[Round "8.13"]
[White "Siscar Conill, Aitor"]
[Black "Vehi Bach, Victor Manuel"]
[Result "1/2-1/2"]
[Annotator "ChessBase"]
[ECO "E06"]
[WhiteElo "1986"]
[BlackElo "2178"]
[PlyCount "59"]
[EventDate "2025.04.15"]
[EventType "swiss"]
[EventCountry "ESP"]
[SourceTitle "playchess.com"]
[Source "ChessBase"]
[SourceQuality "1"]
[TimeControl "5400+30"]

1. d4 {[%emt 0:00:04]} Nf6 {[%emt 0:00:09]} 2. Nf3 {[%emt 0:00:05]} e6 {[%emt 0:00:24]} 3. g3 {[%emt 0:00:09]} d5 {[%emt 0:04:10]} 4. Bg2 {[%emt 0:00:07]} Be7 {[%emt 0:00:05]} 5. O-O {[%emt 0:00:09]} O-O {[%emt 0:00:07]} 6. c4 {[%emt 0:00:40]} a5 {[%emt 0:00:17]} 7. Qc2 {[%emt 0:02:25]} c6 {[%emt 0:02:23]} 8. c5 {[%emt 0:07:33]} b6 {[%emt 0:03:30]} 9. cxb6 {[%emt 0:00:27]} Qxb6 {[%emt 0:00:10]} 10. Nc3 {[%emt 0:00:06]} Nbd7 {[%emt 0:27:59]} 11. b3 {[%emt 0:09:07]} Ba6 {[%emt 0:03:03]} 12. Be3 {[%emt 0:12:53]} Rfc8 {[%emt 0:10:40]} 13. Ne5 {[%emt 0:24:47]} c5 {[%emt 0:09:49]} 14. Nxd7 {[%emt 0:00:37]} Nxd7 {[%emt 0:00:02]} 15. dxc5 {[%emt 0:00:16]} Nxc5 {[%emt 0:01:34]} 16. Qd2 {[%emt 0:00:11]} Qd8 {[%emt 0:11:33]} 17. Rfd1 {[%emt 0:04:07]} Bf6 {[%emt 0:09:20]} 18. Rac1 {[%emt 0:00:23]} Nd7 {[%emt 0:01:54]} 19. Na4 {[%emt 0:16:47]} h6 {[%emt 0:02:58]} 20. Nc5 {[%emt 0:01:16]} Nxc5 {[%emt 0:00:30]} 21. Bxc5 {[%emt 0:00:01]} Bb7 {[%emt 0:02:42]} 22. e4 {[%emt 0:04:45]} dxe4 {[%emt 0:00:51]} 23. Qe1 {[%emt 0:00:55]} Qe8 {[%emt 0:01:01]} 24. Bxe4 {[%emt 0:00:09]} Bxe4 {[%emt 0:00:21]} 25. Qxe4 {[%emt 0:00:02]} Qb5 {[%emt 0:00:38]} 26. Rc4 {[%emt 0:03:55]} Rd8 {[%emt 0:00:52]} 27. Rd6 {[%emt 0:00:06]} Rxd6 {[%emt 0:01:20]} 28. Bxd6 {[%emt 0:00:23]} Rd8 {[%emt 0:00:05]} 29. Bc5 {[%emt 0:03:20]} g6 {[%emt 0:00:53]} 30. Be3 {[%emt 0:00:51]} 1/2-1/2

[Event "51st La Roda Open 2025"]
[Site "La Roda"]
[Date "2025.04.19"]
[Round "8.14"]
[White "Goncalves, Samuel Jesus P"]
[Black "Amoes, Francisco"]
[Result "1-0"]
[Annotator "ChessBase"]
[ECO "C58"]
[WhiteElo "2248"]
[BlackElo "1875"]
[PlyCount "115"]
[EventDate "2025.04.15"]
[EventType "swiss"]
[EventCountry "ESP"]
[SourceTitle "playchess.com"]
[Source "ChessBase"]
[SourceQuality "1"]
[TimeControl "5400+30"]

1. e4 {[%emt 1:31:00]} e5 {[%emt 0:21:04]} 2. Nf3 {[%emt 0:00:00]} Nc6 {[%emt 0:00:07]} 3. Bc4 {[%emt 0:00:00]} Nf6 {[%emt 0:00:49]} 4. Ng5 {[%emt 0:00:00]} d5 {[%emt 0:00:08]} 5. exd5 {[%emt 0:00:00]} Na5 {[%emt 0:00:09]} 6. Bb5+ {[%emt 0:00:00]} c6 {[%emt 0:00:10]} 7. dxc6 {[%emt 0:00:00]} bxc6 {[%emt 0:00:11]} 8. Bd3 {[%emt 0:00:00]} h6 {[%emt 0:00:31]} 9. Ne4 {[%emt 0:00:00]} Nd5 {[%emt 0:00:26]} 10. O-O {[%emt 0:00:00]} Be7 {[%emt 0:07:08]} 11. Ng3 {[%emt 0:00:00]} O-O {[%emt 0:07:51]} 12. Bf5 {[%emt 0:00:00]} Ba6 {[%emt 0:00:11]} 13. d3 {[%emt 0:00:00]} Nb7 {[%emt 0:02:47]} 14. Nc3 {[%emt 0:00:00]} Nxc3 {[%emt 0:00:26]} 15. bxc3 {[%emt 0:00:00]} Nd6 {[%emt 0:00:14]} 16. Qg4 {[%emt 0:00:00]} Bg5 {[%emt 0:12:32]} 17. Bxg5 {[%emt 0:00:00]} Qxg5 {[%emt 0:00:19]} 18. Qxg5 {[%emt 0:00:00]} hxg5 {[%emt 0:00:01]} 19. Rfe1 {[%emt 0:00:00]} Nxf5 {[%emt 0:01:17]} 20. Nxf5 {[%emt 0:00:00]} Rfe8 {[%emt 0:00:48]} 21. Rab1 {[%emt 0:00:00]} Rad8 {[%emt 0:09:41]} 22. Rb4 {[%emt 0:00:00]} Bc8 {[%emt 0:03:51]} 23. Ne3 {[%emt 0:00:00]} Be6 {[%emt 0:00:34]} 24. a3 {[%emt 0:00:00]} f6 {[%emt 0:02:42]} 25. f3 {[%emt 0:00:00]} Re7 {[%emt 0:03:28]} 26. Reb1 {[%emt 0:00:00]} Kf7 {[%emt 0:00:25]} 27. Kf2 {[%emt 0:00:00]} Rc7 {[%emt 0:00:31]} 28. a4 {[%emt 0:00:00]} Ke7 {[%emt 0:02:01]} 29. Rb7 {[%emt 0:00:00]} Rxb7 {[%emt 0:01:29]} 30. Rxb7+ {[%emt 0:00:00]} Rd7 {[%emt 0:00:20]} 31. Rb8 {[%emt 0:00:00]} Kd6 {[%emt 0:00:21]} 32. c4 {[%emt 0:00:00]} Kc7 {[%emt 0:01:27]} 33. Rb1 {[%emt 0:00:00]} Rd8 {[%emt 0:00:39]} 34. Nd1 {[%emt 0:00:00]} g4 {[%emt 0:02:13]} 35. Nc3 {[%emt 0:00:00]} Rh8 {[%emt 0:01:20]} 36. fxg4 {[%emt 0:00:00]} Rxh2 {[%emt 0:00:27]} 37. Kg3 {[%emt 0:00:00]} Rh6 {[%emt 0:00:30]} 38. Ne4 {[%emt 0:00:00]} Rg6 {[%emt 0:01:27]} 39. Nf2 {[%emt 0:00:00]} Bxg4 {[%emt 0:01:47]} 40. Nxg4 {[%emt 0:00:00]} f5 {[%emt 0:00:14]} 41. a5 {[%emt 0:00:00]} Rxg4+ {[%emt 0:00:12]} 42. Kf3 {[%emt 0:00:00]} Rd4 {[%emt 0:00:44]} 43. a6 {[%emt 0:00:27]} Rd7 {[%emt 0:00:27]} 44. c5 {[%emt 0:02:14]} Kc8 {[%emt 0:00:30]} 45. Ke3 {[%emt 0:00:50]} Rd5 {[%emt 0:02:48]} 46. Rb7 {[%emt 0:02:10]} Rd7 {[%emt 0:00:09]} 47. Rb4 {[%emt 0:01:02]} Rd5 {[%emt 0:00:19]} 48. Rc4 {[%emt 0:00:50]} Kd7 {[%emt 0:01:29]} 49. c3 {[%emt 0:00:01]} Ke6 {[%emt 0:03:55]} 50. d4 {[%emt 0:00:01]} exd4+ {[%emt 0:01:38]} 51. cxd4 {[%emt 0:00:02]} Rd8 {[%emt 0:00:19]} 52. Rb4 {[%emt 0:00:08]} Kd5 {[%emt 0:01:41]} 53. Kd3 {[%emt 0:00:01]} Ke6 {[%emt 0:03:56]} 54. Rb7 {[%emt 0:01:26]} Rd7 {[%emt 0:00:05]} 55. Rb8 {[%emt 0:00:03]} Ke7 {[%emt 0:01:26]} 56. Rc8 {[%emt 0:00:12]} g5 {[%emt 0:01:28]} 57. Rxc6 {[%emt 0:00:03]} f4 {[%emt 0:01:00]} 58. Rg6 {[%emt 0:00:34]} 1-0

[Event "51st La Roda Open 2025"]
[Site "La Roda"]
[Date "2025.04.19"]
[Round "8.15"]
[White "Bercaru, Vlad Ionut"]
[Black "Valmana Canto, Jaime"]
[Result "0-1"]
[Annotator "ChessBase"]
[ECO "E48"]
[WhiteElo "2076"]
[BlackElo "2385"]
[PlyCount "70"]
[EventDate "2025.04.15"]
[EventType "swiss"]
[EventCountry "ESP"]
[SourceTitle "playchess.com"]
[Source "ChessBase"]
[SourceQuality "1"]
[TimeControl "5400+30"]

1. d4 {[%emt 0:00:09]} Nf6 {[%emt 0:01:14]} 2. c4 {[%emt 0:00:08]} e6 {[%emt 0:00:17]} 3. Nc3 {[%emt 0:00:09]} Bb4 {[%emt 0:00:08]} 4. e3 {[%emt 0:00:08]} O-O {[%emt 0:00:23]} 5. Bd3 {[%emt 0:00:08]} d5 {[%emt 0:00:18]} 6. cxd5 {[%emt 0:00:17]} exd5 {[%emt 0:00:25]} 7. a3 {[%emt 0:00:15]} Bd6 {[%emt 0:01:13]} 8. Qc2 {[%emt 0:00:07]} a6 {[%emt 0:06:26]} 9. Nge2 {[%emt 0:02:27]} Re8 {[%emt 0:00:10]} 10. Bd2 {[%emt 0:02:12]} c5 {[%emt 0:10:39]} 11. dxc5 {[%emt 0:20:01]} Bxc5 {[%emt 0:00:08]} 12. O-O {[%emt 0:00:28]} Nc6 {[%emt 0:01:07]} 13. b4 {[%emt 0:07:51]} Bd6 {[%emt 0:01:03]} 14. Ng3 {[%emt 0:00:42]} Ne5 {[%emt 0:04:22]} 15. Nce2 {[%emt 0:05:25]} Bd7 {[%emt 0:04:10]} 16. Nd4 {[%emt 0:01:32]} Rc8 {[%emt 0:00:02]} 17. Qb3 {[%emt 0:00:55]} Nc4 {[%emt 0:03:39]} 18. Rad1 {[%emt 0:03:07]} g6 {[%emt 0:05:06]} 19. Bc1 {[%emt 0:09:20]} Ng4 {[%emt 0:06:32]} 20. e4 {[%emt 0:05:27]} Nb6 {[%emt 0:02:18]} 21. Qb1 {[%emt 0:05:12]} Ba4 {[%emt 0:01:55]} 22. Rde1 {[%emt 0:05:11]} dxe4 {[%emt 0:00:31]} 23. Be2 {[%emt 0:02:09]} Nxh2 {[%emt 0:38:13]} 24. Kxh2 {[%emt 0:00:34]} e3 {[%emt 0:00:06]} 25. Bxe3 {[%emt 0:12:25]} Rxe3 {[%emt 0:00:27]} 26. fxe3 {[%emt 0:00:07]} Qh4+ {[%emt 0:00:34]} 27. Kg1 {[%emt 0:00:03]} Bxg3 {[%emt 0:02:40]} 28. Nf3 {[%emt 0:00:08]} Qh6 {[%emt 0:01:26]} 29. Bd3 {[%emt 0:00:29]} Nd5 {[%emt 0:01:01]} 30. Re2 {[%emt 0:02:17]} Nc3 {[%emt 0:00:22]} 31. Qb2 {[%emt 0:00:10]} Nxe2+ {[%emt 0:00:15]} 32. Qxe2 {[%emt 0:00:11]} Re8 {[%emt 0:01:26]} 33. e4 {[%emt 0:00:34]} Bc7 {[%emt 0:00:32]} 34. g4 {[%emt 0:00:38]} Bc6 {[%emt 0:02:17]} 35. Kg2 {[%emt 0:00:26]} Qf4 {[%emt 0:00:10]} 0-1